[Event "World Junior Chess Championship U20 2022"]
[White "Petriashvili, Nikoloz"]
[Black "Petkov, Momchil"]
[WhiteFideId "13611216"]
[BlackFideId "2921642"]
[WhiteElo "2428"]
[BlackElo "2511"]
[Result "1/2-1/2"]
[Round "04"]
[TimeControl "5400+30"]
[Date "2022.10.14"]
[WhiteClock "0:23:13"]
[BlackClock "0:10:35"]

1. e4 {[%clk 1:30:16]}  c5 {[%clk 1:30:44]} 2. Nc3 {[%clk 1:30:40]}  d6 {[%clk 1:30:56]} 3. d4 {[%clk 1:31:07]}  cxd4 {[%clk 1:30:49]} 4. Qxd4 {[%clk 1:29:17]}  Nc6 {[%clk 1:31:03]} 5. Qd2 {[%clk 1:29:43]}  g6 {[%clk 1:30:53]} 6. b3 {[%clk 1:29:20]}  Bh6 {[%clk 1:31:00]} 7. f4 {[%clk 1:29:46]}  f5 {[%clk 1:31:25]} 8. Bb2 {[%clk 1:30:06]}  Nf6 {[%clk 1:31:41]} 9. O-O-O {[%clk 1:30:24]}  Rf8 {[%clk 1:30:30]} 10. exf5 {[%clk 1:16:07]}  Bxf5 {[%clk 1:27:54]} 11. Bb5 {[%clk 1:12:14]}  Qb6 {[%clk 1:10:20]} 12. Nge2 {[%clk 1:01:55]}  Ne4 {[%clk 1:06:23]} 13. Bxc6+ {[%clk 0:50:35]}  Qxc6 {[%clk 1:03:40]} 14. Nxe4 {[%clk 0:44:47]}  Bxe4 {[%clk 1:03:54]} 15. Kb1 {[%clk 0:45:13]}  Rc8 {[%clk 0:50:22]} 16. Nd4 {[%clk 0:43:31]}  Qd7 {[%clk 0:47:31]} 17. Rhf1 {[%clk 0:40:07]}  Bg7 {[%clk 0:42:20]} 18. Rfe1 {[%clk 0:34:29]}  d5 {[%clk 0:41:29]} 19. Ka1 {[%clk 0:34:53]}  b5 {[%clk 0:34:57]} 20. Rc1 {[%clk 0:33:46]}  Bh6 {[%clk 0:21:06]} 21. g3 {[%clk 0:33:30]}  Kf7 {[%clk 0:16:53]} 22. Ne2 {[%clk 0:32:06]}  Rfd8 {[%clk 0:13:53]} 23. Nc3 {[%clk 0:28:05]}  Bf5 {[%clk 0:13:40]} 24. Ne2 {[%clk 0:25:46]}  Be4 {[%clk 0:09:45]} 25. Nc3 {[%clk 0:23:41]}  Bf5 {[%clk 0:10:10]} 26. Ne2 {[%clk 0:22:47]}  Be4 {[%clk 0:10:35]} 27. Nc3 {[%clk 0:23:13]} 1/2-1/2


[Site "http://www.chessbomb.com"]

[Event "World Junior Chess Championship U20 2022"]
[White "Zhu, Jiner"]
[Black "Abdurakhmonov, Mukhammadali"]
[WhiteFideId "8608059"]
[BlackFideId "14207346"]
[WhiteElo "2484"]
[BlackElo "2345"]
[Result "1/2-1/2"]
[Round "04"]
[TimeControl "5400+30"]
[Date "2022.10.14"]
[WhiteClock "0:31:41"]
[BlackClock "0:28:35"]

1. e4 {[%clk 1:30:48]}  c5 {[%clk 1:28:36]} 2. Nf3 {[%clk 1:31:11]}  e6 {[%clk 1:29:00]} 3. d4 {[%clk 1:31:15]}  cxd4 {[%clk 1:29:19]} 4. Nxd4 {[%clk 1:31:38]}  a6 {[%clk 1:29:44]} 5. Nc3 {[%clk 1:31:22]}  Qc7 {[%clk 1:29:55]} 6. Bd3 {[%clk 1:31:39]}  Nf6 {[%clk 1:28:42]} 7. Qe2 {[%clk 1:31:23]}  d6 {[%clk 1:28:15]} 8. f4 {[%clk 1:31:21]}  g6 {[%clk 1:18:43]} 9. e5 {[%clk 1:06:56]}  Nfd7 {[%clk 1:15:39]} 10. exd6 {[%clk 0:59:03]}  Bxd6 {[%clk 0:55:13]} 11. O-O {[%clk 0:54:03]}  O-O {[%clk 0:43:08]} 12. Ne4 {[%clk 0:52:31]}  Be7 {[%clk 0:42:30]} 13. Be3 {[%clk 0:49:30]}  Nf6 {[%clk 0:40:34]} 14. c4 {[%clk 0:46:44]}  Nbd7 {[%clk 0:35:42]} 15. Nxf6+ {[%clk 0:45:57]}  Bxf6 {[%clk 0:35:41]} 16. Rad1 {[%clk 0:37:15]}  Nc5 {[%clk 0:28:15]} 17. Bc2 {[%clk 0:33:47]}  e5 {[%clk 0:28:00]} 18. Nb3 {[%clk 0:28:00]}  Ne6 {[%clk 0:26:51]} 19. f5 {[%clk 0:27:05]}  Nf4 {[%clk 0:25:50]} 20. Bxf4 {[%clk 0:26:55]}  exf4 {[%clk 0:26:14]} 21. Be4 {[%clk 0:26:37]}  Re8 {[%clk 0:17:57]} 22. Qc2 {[%clk 0:23:43]}  Kg7 {[%clk 0:17:48]} 23. Rde1 {[%clk 0:21:14]}  a5 {[%clk 0:16:48]} 24. Kh1 {[%clk 0:20:38]}  a4 {[%clk 0:11:47]} 25. Nc1 {[%clk 0:20:56]}  Qa5 {[%clk 0:11:14]} 26. fxg6 {[%clk 0:19:46]}  hxg6 {[%clk 0:11:25]} 27. Qf2 {[%clk 0:19:32]}  g5 {[%clk 0:09:39]} 28. Nd3 {[%clk 0:18:51]}  Ra6 {[%clk 0:09:15]} 29. Bd5 {[%clk 0:17:39]}  Rxe1 {[%clk 0:08:08]} 30. Rxe1 {[%clk 0:18:04]}  Bf5 {[%clk 0:04:57]} 31. Ne5 {[%clk 0:18:24]}  Rb6 {[%clk 0:04:55]} 32. Re2 {[%clk 0:15:34]}  a3 {[%clk 0:02:33]} 33. b3 {[%clk 0:15:55]}  Rxb3 {[%clk 0:02:20]} 34. axb3 {[%clk 0:16:15]}  Bxe5 {[%clk 0:02:11]} 35. Rxe5 {[%clk 0:11:46]}  a2 {[%clk 0:02:28]} 36. Re1 {[%clk 0:12:12]}  a1=Q {[%clk 0:02:30]} 37. Rxa1 {[%clk 0:12:37]}  Qxa1+ {[%clk 0:02:51]} 38. Qg1 {[%clk 0:13:05]}  Qxg1+ {[%clk 0:01:38]} 39. Kxg1 {[%clk 0:07:48]}  b6 {[%clk 0:02:03]} 40. b4 {[%clk 0:06:47]}  Kf6 {[%clk 0:02:14]} 41. Kf2 {[%clk 0:06:34]}  Bg6 {[%clk 0:01:41]} 42. c5 {[%clk 0:04:26]}  bxc5 {[%clk 0:02:00]} 43. bxc5 {[%clk 0:04:50]}  Ke5 {[%clk 0:02:25]} 44. Bb7 {[%clk 0:05:07]}  f6 {[%clk 0:01:17]} 45. Ke2 {[%clk 0:04:39]}  Bf7 {[%clk 0:00:37]} 46. Bf3 {[%clk 0:03:24]}  Bd5 {[%clk 0:00:31]} 47. h3 {[%clk 0:03:33]}  f5 {[%clk 0:25:57]} 48. Bxd5 {[%clk 0:29:07]}  Kxd5 {[%clk 0:26:14]} 49. h4 {[%clk 0:29:31]}  gxh4 {[%clk 0:26:39]} 50. Kf3 {[%clk 0:29:58]}  Kxc5 {[%clk 0:26:58]} 51. Kxf4 {[%clk 0:30:25]}  Kd4 {[%clk 0:27:15]} 52. Kxf5 {[%clk 0:30:50]}  Ke3 {[%clk 0:27:40]} 53. Kg4 {[%clk 0:31:16]}  Kf2 {[%clk 0:28:08]} 54. Kxh4 {[%clk 0:31:41]}  Kxg2 {[%clk 0:28:35]} 1/2-1/2


[Site "http://www.chessbomb.com"]

[Event "World Junior Chess Championship U20 2022"]
[White "Jakab, Bela"]
[Black "Stefansson, Vignir Vatnar"]
[WhiteFideId "14933128"]
[BlackFideId "2308649"]
[WhiteElo "2353"]
[BlackElo "2471"]
[Result "1/2-1/2"]
[Round "04"]
[TimeControl "5400+30"]
[Date "2022.10.14"]
[WhiteClock "0:18:32"]
[BlackClock "1:03:16"]

1. e4 {[%clk 1:30:51]}  e6 {[%clk 1:28:46]} 2. d4 {[%clk 1:31:08]}  d5 {[%clk 1:28:38]} 3. Nc3 {[%clk 1:31:30]}  Be7 {[%clk 1:28:43]} 4. exd5 {[%clk 1:30:42]}  exd5 {[%clk 1:28:26]} 5. Bd3 {[%clk 1:31:05]}  Nf6 {[%clk 1:27:48]} 6. Nge2 {[%clk 1:31:27]}  O-O {[%clk 1:20:05]} 7. Bg5 {[%clk 1:31:07]}  h6 {[%clk 1:20:05]} 8. Bh4 {[%clk 1:31:24]}  b6 {[%clk 1:19:21]} 9. O-O {[%clk 1:30:34]}  Bb7 {[%clk 1:19:35]} 10. Re1 {[%clk 1:29:17]}  c5 {[%clk 1:17:43]} 11. Ng3 {[%clk 1:25:55]}  g6 {[%clk 1:15:01]} 12. Qf3 {[%clk 1:04:23]}  Nbd7 {[%clk 1:09:07]} 13. Qe3 {[%clk 0:53:21]}  Re8 {[%clk 1:02:45]} 14. Qxh6 {[%clk 0:52:22]}  Ng4 {[%clk 1:01:09]} 15. Qf4 {[%clk 0:45:09]}  Bxh4 {[%clk 1:00:58]} 16. Qxg4 {[%clk 0:45:34]}  Bxg3 {[%clk 0:59:22]} 17. Qxg3 {[%clk 0:41:18]}  c4 {[%clk 0:57:50]} 18. Bxg6 {[%clk 0:31:54]}  fxg6 {[%clk 0:57:47]} 19. Qxg6+ {[%clk 0:32:17]}  Kh8 {[%clk 0:57:11]} 20. Nb5 {[%clk 0:27:45]}  Nf8 {[%clk 0:55:12]} 21. Rxe8 {[%clk 0:22:05]}  Qxe8 {[%clk 0:55:32]} 22. Qf6+ {[%clk 0:22:30]}  Kg8 {[%clk 0:55:53]} 23. Nd6 {[%clk 0:21:48]}  Qe6 {[%clk 0:49:05]} 24. Qxe6+ {[%clk 0:21:10]}  Nxe6 {[%clk 0:49:30]} 25. Nxb7 {[%clk 0:21:36]}  Nxd4 {[%clk 0:49:49]} 26. c3 {[%clk 0:20:32]}  Ne2+ {[%clk 0:49:22]} 27. Kf1 {[%clk 0:20:55]}  Nf4 {[%clk 0:49:49]} 28. b3 {[%clk 0:18:18]}  cxb3 {[%clk 0:43:46]} 29. axb3 {[%clk 0:18:37]}  Rc8 {[%clk 0:43:00]} 30. g3 {[%clk 0:18:10]}  Nd3 {[%clk 0:43:20]} 31. c4 {[%clk 0:08:14]}  dxc4 {[%clk 0:43:31]} 32. bxc4 {[%clk 0:08:30]}  Rxc4 {[%clk 0:41:34]} 33. Ra3 {[%clk 0:08:14]}  Rc1+ {[%clk 0:41:11]} 34. Ke2 {[%clk 0:08:17]}  Ne5 {[%clk 0:41:35]} 35. Rxa7 {[%clk 0:07:54]}  Rc2+ {[%clk 0:42:01]} 36. Kf1 {[%clk 0:06:14]}  Nd3 {[%clk 0:39:48]} 37. Ra3 {[%clk 0:05:35]}  Rxf2+ {[%clk 0:39:59]} 38. Kg1 {[%clk 0:05:57]}  Rd2 {[%clk 0:40:23]} 39. h4 {[%clk 0:04:41]}  b5 {[%clk 0:36:55]} 40. Rb3 {[%clk 0:04:13]}  b4 {[%clk 0:32:12]} 41. g4 {[%clk 0:01:06]}  Ne5 {[%clk 0:32:07]} 42. Rxb4 {[%clk 0:17:13]}  Nf3+ {[%clk 1:02:30]} 43. Kf1 {[%clk 0:17:40]}  Nh2+ {[%clk 1:02:51]} 44. Ke1 {[%clk 0:18:04]}  Nf3+ {[%clk 1:03:16]} 45. Kf1 {[%clk 0:18:32]} 1/2-1/2


[Site "http://www.chessbomb.com"]

[Event "World Junior Chess Championship U20 2022"]
[White "Barseghyan, Armen Ar."]
[Black "Nesterov, Arseniy"]
[WhiteFideId "13306707"]
[BlackFideId "24198455"]
[WhiteElo "2402"]
[BlackElo "2567"]
[Result "1/2-1/2"]
[Round "04"]
[TimeControl "5400+30"]
[Date "2022.10.14"]
[WhiteClock "0:43:40"]
[BlackClock "0:18:53"]

1. d4 {[%clk 1:30:16]}  Nf6 {[%clk 1:30:43]} 2. Nf3 {[%clk 1:30:07]}  d5 {[%clk 1:31:03]} 3. Bf4 {[%clk 1:30:00]}  c5 {[%clk 1:24:39]} 4. e3 {[%clk 1:29:57]}  Nc6 {[%clk 1:23:14]} 5. Nbd2 {[%clk 1:29:07]}  cxd4 {[%clk 1:14:56]} 6. exd4 {[%clk 1:29:29]}  Bf5 {[%clk 1:15:11]} 7. Bb5 {[%clk 1:28:35]}  Qb6 {[%clk 1:06:28]} 8. a4 {[%clk 1:26:07]}  a6 {[%clk 1:05:15]} 9. Bxc6+ {[%clk 1:26:24]}  bxc6 {[%clk 1:02:10]} 10. Nb3 {[%clk 1:23:29]}  e6 {[%clk 1:02:24]} 11. O-O {[%clk 1:18:54]}  Be7 {[%clk 1:00:52]} 12. Ne5 {[%clk 1:15:29]}  h6 {[%clk 0:47:40]} 13. c4 {[%clk 1:12:44]}  dxc4 {[%clk 0:44:19]} 14. Nxc4 {[%clk 1:13:05]}  Qd8 {[%clk 0:39:03]} 15. Rc1 {[%clk 1:00:53]}  Nd5 {[%clk 0:25:13]} 16. Be5 {[%clk 0:59:12]}  O-O {[%clk 0:25:11]} 17. Nca5 {[%clk 0:57:44]}  Nb4 {[%clk 0:24:09]} 18. Qf3 {[%clk 0:50:21]}  Qd5 {[%clk 0:15:37]} 19. Nxc6 {[%clk 0:50:16]}  Nxc6 {[%clk 0:15:55]} 20. Qxd5 {[%clk 0:50:43]}  exd5 {[%clk 0:16:18]} 21. Rxc6 {[%clk 0:51:04]}  Bd7 {[%clk 0:16:15]} 22. Rc7 {[%clk 0:47:01]}  Bxa4 {[%clk 0:16:27]} 23. Rxe7 {[%clk 0:43:53]}  Bxb3 {[%clk 0:16:52]} 24. Rc1 {[%clk 0:41:29]}  Rac8 {[%clk 0:16:26]} 25. Rxc8 {[%clk 0:41:11]}  Rxc8 {[%clk 0:16:55]} 26. Rc7 {[%clk 0:41:34]}  Rxc7 {[%clk 0:17:18]} 27. Bxc7 {[%clk 0:42:01]}  f6 {[%clk 0:17:40]} 28. f3 {[%clk 0:42:21]}  Kf7 {[%clk 0:18:06]} 29. Kf2 {[%clk 0:42:48]}  Ke6 {[%clk 0:18:29]} 30. Ke3 {[%clk 0:43:14]}  Kd7 {[%clk 0:18:53]} 31. Ba5 {[%clk 0:43:40]} 1/2-1/2


[Site "http://www.chessbomb.com"]

[Event "World Junior Chess Championship U20 2022"]
[White "Peyrer, Konstantin"]
[Black "Mendonca, Leon Luke"]
[WhiteFideId "1640879"]
[BlackFideId "35028561"]
[WhiteElo "2402"]
[BlackElo "2558"]
[Result "1/2-1/2"]
[Round "04"]
[TimeControl "5400+30"]
[Date "2022.10.14"]
[WhiteClock "0:52:04"]
[BlackClock "0:10:16"]

1. e4 {[%clk 1:30:52]}  e6 {[%clk 1:28:25]} 2. d4 {[%clk 1:31:06]}  d5 {[%clk 1:28:47]} 3. Nc3 {[%clk 1:31:21]}  Bb4 {[%clk 1:28:52]} 4. e5 {[%clk 1:31:45]}  c5 {[%clk 1:29:11]} 5. a3 {[%clk 1:32:03]}  Bxc3+ {[%clk 1:29:36]} 6. bxc3 {[%clk 1:32:28]}  Ne7 {[%clk 1:29:55]} 7. Qg4 {[%clk 1:32:52]}  Qc7 {[%clk 1:29:44]} 8. Qxg7 {[%clk 1:33:15]}  Rg8 {[%clk 1:30:11]} 9. Qxh7 {[%clk 1:33:39]}  cxd4 {[%clk 1:30:32]} 10. Qd3 {[%clk 1:34:04]}  Qxe5+ {[%clk 1:27:22]} 11. Ne2 {[%clk 1:34:26]}  dxc3 {[%clk 1:27:31]} 12. Qxc3 {[%clk 1:34:50]}  Qxc3+ {[%clk 1:26:40]} 13. Nxc3 {[%clk 1:35:14]}  Nbc6 {[%clk 1:26:18]} 14. Nb5 {[%clk 1:26:35]}  Kd7 {[%clk 1:24:39]} 15. Bb2 {[%clk 1:25:47]}  a6 {[%clk 1:09:52]} 16. Nd4 {[%clk 1:25:17]}  e5 {[%clk 1:05:15]} 17. Nxc6 {[%clk 1:23:32]}  Nxc6 {[%clk 1:05:36]} 18. O-O-O {[%clk 1:23:24]}  Kd6 {[%clk 1:04:03]} 19. Bd3 {[%clk 1:17:35]}  Kc5 {[%clk 0:54:57]} 20. Rhg1 {[%clk 1:09:57]}  b5 {[%clk 0:35:20]} 21. f3 {[%clk 1:03:47]}  Be6 {[%clk 0:33:17]} 22. Rde1 {[%clk 0:59:35]}  f6 {[%clk 0:29:00]} 23. g4 {[%clk 0:59:28]}  Rh8 {[%clk 0:26:58]} 24. g5 {[%clk 0:58:55]}  Rxh2 {[%clk 0:20:20]} 25. gxf6 {[%clk 0:57:31]}  Rh6 {[%clk 0:19:38]} 26. Rxe5 {[%clk 0:43:55]}  Nxe5 {[%clk 0:18:16]} 27. Bxe5 {[%clk 0:43:50]}  Rg8 {[%clk 0:10:35]} 28. Re1 {[%clk 0:42:17]}  Rf8 {[%clk 0:08:08]} 29. c3 {[%clk 0:38:51]}  Rfxf6 {[%clk 0:05:10]} 30. Bd4+ {[%clk 0:39:13]}  Kd6 {[%clk 0:05:14]} 31. Bxf6 {[%clk 0:39:38]}  Rxf6 {[%clk 0:03:44]} 32. Re3 {[%clk 0:39:50]}  Rf4 {[%clk 0:04:03]} 33. Be2 {[%clk 0:38:48]}  Bd7 {[%clk 0:04:14]} 34. Kb2 {[%clk 0:37:14]}  Rh4 {[%clk 0:04:35]} 35. Bd1 {[%clk 0:37:21]}  Rh2+ {[%clk 0:03:26]} 36. Re2 {[%clk 0:37:21]}  Rh1 {[%clk 0:03:17]} 37. Bb3 {[%clk 0:37:19]}  Rf1 {[%clk 0:03:20]} 38. Rd2 {[%clk 0:37:33]}  Bc6 {[%clk 0:01:20]} 39. c4 {[%clk 0:37:56]}  bxc4 {[%clk 0:01:26]} 40. Bxc4 {[%clk 0:38:20]}  Rxf3 {[%clk 0:01:52]} 41. Bxa6 {[%clk 0:38:46]}  Kc5 {[%clk 0:02:00]} 42. Bd3 {[%clk 0:36:57]}  Ba4 {[%clk 0:27:44]} 43. Bc2 {[%clk 1:05:16]}  Bb5 {[%clk 0:27:13]} 44. Bd1 {[%clk 1:04:34]}  Re3 {[%clk 0:26:24]} 45. Bb3 {[%clk 1:03:26]}  d4 {[%clk 0:26:07]} 46. Rc2+ {[%clk 1:03:31]}  Kb6 {[%clk 0:21:56]} 47. Rh2 {[%clk 1:03:11]}  d3 {[%clk 0:20:01]} 48. Rh6+ {[%clk 0:59:38]}  Kc7 {[%clk 0:19:47]} 49. Rh4 {[%clk 0:55:19]}  Kd6 {[%clk 0:18:13]} 50. Rd4+ {[%clk 0:55:17]}  Kc5 {[%clk 0:18:09]} 51. Rd5+ {[%clk 0:55:41]}  Kc6 {[%clk 0:18:32]} 52. Rd8 {[%clk 0:55:51]}  Ba6 {[%clk 0:17:48]} 53. Rd4 {[%clk 0:54:29]}  Rh3 {[%clk 0:17:06]} 54. Rd8 {[%clk 0:53:43]}  Rh5 {[%clk 0:14:56]} 55. Kc3 {[%clk 0:52:30]}  Rc5+ {[%clk 0:14:50]} 56. Kd2 {[%clk 0:52:47]}  Ra5 {[%clk 0:13:48]} 57. Ba2 {[%clk 0:51:55]}  Rb5 {[%clk 0:10:16]} 58. Bc4 {[%clk 0:52:04]} 1/2-1/2


[Site "http://www.chessbomb.com"]

[Event "World Junior Chess Championship U20 2022"]
[White "Di Benedetto, Edoardo"]
[Black "Seo, Jung Min"]
[WhiteFideId "875740"]
[BlackFideId "1734687"]
[WhiteElo "2396"]
[BlackElo "2520"]
[Result "1/2-1/2"]
[Round "04"]
[TimeControl "5400+30"]
[Date "2022.10.14"]
[WhiteClock "0:28:54"]
[BlackClock "1:04:02"]

1. d4 {[%clk 1:30:54]}  Nf6 {[%clk 1:30:59]} 2. c4 {[%clk 1:31:17]}  g6 {[%clk 1:31:27]} 3. g3 {[%clk 1:31:39]}  c5 {[%clk 1:31:55]} 4. Nf3 {[%clk 1:31:38]}  Qa5+ {[%clk 1:30:43]} 5. Bd2 {[%clk 1:26:01]}  Qb6 {[%clk 1:31:10]} 6. dxc5 {[%clk 1:25:34]}  Qxc5 {[%clk 1:31:36]} 7. Bg2 {[%clk 1:23:06]}  Bg7 {[%clk 1:27:08]} 8. Qc1 {[%clk 1:22:28]}  Ne4 {[%clk 1:26:49]} 9. O-O {[%clk 1:22:48]}  Nxd2 {[%clk 1:27:16]} 10. Nbxd2 {[%clk 1:23:10]}  O-O {[%clk 1:27:38]} 11. Rd1 {[%clk 1:18:46]}  d6 {[%clk 1:24:39]} 12. Ne4 {[%clk 1:09:27]}  Qb4 {[%clk 1:20:12]} 13. Rb1 {[%clk 1:08:17]}  Bf5 {[%clk 1:14:16]} 14. a3 {[%clk 1:07:27]}  Qb6 {[%clk 1:14:31]} 15. Nh4 {[%clk 1:06:03]}  Bxe4 {[%clk 1:13:23]} 16. Bxe4 {[%clk 1:06:26]}  Nc6 {[%clk 1:13:51]} 17. b4 {[%clk 1:02:05]}  Nd4 {[%clk 1:11:57]} 18. Qd2 {[%clk 0:48:01]}  Rac8 {[%clk 1:10:47]} 19. e3 {[%clk 0:47:51]}  Nc6 {[%clk 1:10:49]} 20. Nf3 {[%clk 0:46:34]}  Rfd8 {[%clk 1:09:51]} 21. Qe2 {[%clk 0:44:50]}  Bf6 {[%clk 1:07:50]} 22. Rd5 {[%clk 0:42:45]}  e6 {[%clk 1:05:34]} 23. Rxd6 {[%clk 0:38:39]}  Rxd6 {[%clk 1:06:01]} 24. c5 {[%clk 0:39:03]}  Qc7 {[%clk 1:06:22]} 25. cxd6 {[%clk 0:39:27]}  Qxd6 {[%clk 1:06:51]} 26. Rd1 {[%clk 0:39:47]}  Qc7 {[%clk 1:07:05]} 27. Kg2 {[%clk 0:39:09]}  a6 {[%clk 1:06:19]} 28. Rc1 {[%clk 0:38:17]}  Qd7 {[%clk 1:06:42]} 29. b5 {[%clk 0:36:55]}  axb5 {[%clk 1:05:49]} 30. Qxb5 {[%clk 0:36:57]}  Rc7 {[%clk 1:04:56]} 31. a4 {[%clk 0:33:59]}  Nd8 {[%clk 1:04:42]} 32. Rxc7 {[%clk 0:33:42]}  Qxc7 {[%clk 1:05:11]} 33. Nd2 {[%clk 0:32:23]}  Bc3 {[%clk 1:04:14]} 34. Nb3 {[%clk 0:31:38]}  b6 {[%clk 1:04:21]} 35. Qd3 {[%clk 0:31:12]}  Nb7 {[%clk 1:04:02]} 36. Bf3 {[%clk 0:28:54]} 1/2-1/2


[Site "http://www.chessbomb.com"]

[Event "World Junior Chess Championship U20 2022"]
[White "Davtyan, Artur"]
[Black "Milosevic, Milos"]
[WhiteFideId "13308327"]
[BlackFideId "964875"]
[WhiteElo "2517"]
[BlackElo "2379"]
[Result "1-0"]
[Round "04"]
[TimeControl "5400+30"]
[Date "2022.10.14"]
[WhiteClock "0:01:51"]
[BlackClock "0:07:29"]

1. Nf3 {[%clk 1:29:39]}  d6 {[%clk 1:30:21]} 2. d4 {[%clk 1:29:36]}  Nf6 {[%clk 1:30:44]} 3. c4 {[%clk 1:30:01]}  Nbd7 {[%clk 1:31:09]} 4. Nc3 {[%clk 1:27:25]}  e5 {[%clk 1:31:33]} 5. e4 {[%clk 1:27:32]}  Be7 {[%clk 1:31:57]} 6. Be2 {[%clk 1:27:54]}  O-O {[%clk 1:32:23]} 7. O-O {[%clk 1:28:18]}  c6 {[%clk 1:32:51]} 8. Qc2 {[%clk 1:23:23]}  a6 {[%clk 1:33:08]} 9. a3 {[%clk 1:18:17]}  b5 {[%clk 1:32:10]} 10. Rd1 {[%clk 1:18:15]}  Qc7 {[%clk 1:31:46]} 11. Bg5 {[%clk 1:15:23]}  Re8 {[%clk 1:27:13]} 12. Rac1 {[%clk 1:14:43]}  Bf8 {[%clk 1:24:00]} 13. b4 {[%clk 0:50:27]}  exd4 {[%clk 1:21:43]} 14. Nxd4 {[%clk 0:49:48]}  Bb7 {[%clk 1:17:40]} 15. Nf5 {[%clk 0:41:01]}  bxc4 {[%clk 1:12:41]} 16. Bxc4 {[%clk 0:40:58]}  d5 {[%clk 1:07:26]} 17. Bb3 {[%clk 0:26:57]}  Qe5 {[%clk 0:38:19]} 18. f4 {[%clk 0:17:25]}  Qb8 {[%clk 0:38:33]} 19. e5 {[%clk 0:12:25]}  Ng4 {[%clk 0:30:24]} 20. Qe2 {[%clk 0:11:57]}  Qa7+ {[%clk 0:27:00]} 21. Nd4 {[%clk 0:12:17]}  Ngf6 {[%clk 0:23:26]} 22. Qd3 {[%clk 0:08:38]}  c5 {[%clk 0:18:24]} 23. exf6 {[%clk 0:08:53]}  cxd4 {[%clk 0:14:41]} 24. Nxd5 {[%clk 0:09:18]}  Bxd5 {[%clk 0:12:31]} 25. Bxd5 {[%clk 0:09:27]}  Rac8 {[%clk 0:12:08]} 26. Rxc8 {[%clk 0:05:51]}  Rxc8 {[%clk 0:12:36]} 27. Qxd4 {[%clk 0:01:25]}  Qxd4+ {[%clk 0:11:44]} 28. Rxd4 {[%clk 0:01:54]}  gxf6 {[%clk 0:10:02]} 29. Bh4 {[%clk 0:01:49]}  Rc3 {[%clk 0:10:28]} 30. Bf3 {[%clk 0:00:33]}  Nc5 {[%clk 0:09:43]} 31. f5 {[%clk 0:01:02]}  Nd3 {[%clk 0:10:00]} 32. h3 {[%clk 0:00:40]}  Ne5 {[%clk 0:10:12]} 33. Bxf6 {[%clk 0:00:56]}  Nxf3+ {[%clk 0:06:36]} 34. gxf3 {[%clk 0:01:24]}  Rc1+ {[%clk 0:06:52]} 35. Kg2 {[%clk 0:01:49]}  h5 {[%clk 0:07:13]} 36. Rd8 {[%clk 0:02:09]}  Rc7 {[%clk 0:07:29]} 37. Be5 {[%clk 0:01:51]} 1-0


[Site "http://www.chessbomb.com"]

[Event "World Junior Chess Championship U20 2022"]
[White "Horvath, Dominik"]
[Black "Mladek, Richard"]
[WhiteFideId "1642561"]
[BlackFideId "386588"]
[WhiteElo "2505"]
[BlackElo "2371"]
[Result "1-0"]
[Round "04"]
[TimeControl "5400+30"]
[Date "2022.10.14"]
[WhiteClock "0:24:30"]
[BlackClock "0:01:10"]

1. d4 {[%clk 1:30:22]}  d5 {[%clk 1:29:43]} 2. c4 {[%clk 1:30:45]}  e6 {[%clk 1:30:00]} 3. Nc3 {[%clk 1:31:09]}  Nf6 {[%clk 1:29:25]} 4. cxd5 {[%clk 1:31:22]}  exd5 {[%clk 1:29:41]} 5. Bg5 {[%clk 1:31:46]}  c6 {[%clk 1:29:51]} 6. e3 {[%clk 1:32:12]}  h6 {[%clk 1:30:02]} 7. Bh4 {[%clk 1:32:37]}  Be7 {[%clk 1:30:27]} 8. Bd3 {[%clk 1:33:03]}  O-O {[%clk 1:30:38]} 9. Nge2 {[%clk 1:33:29]}  Nbd7 {[%clk 1:30:06]} 10. O-O {[%clk 1:33:51]}  Re8 {[%clk 1:29:55]} 11. a4 {[%clk 1:34:16]}  Nh5 {[%clk 1:25:31]} 12. Bxe7 {[%clk 1:34:13]}  Qxe7 {[%clk 1:25:59]} 13. a5 {[%clk 1:31:47]}  Nf8 {[%clk 1:14:35]} 14. Qb1 {[%clk 1:31:44]}  g6 {[%clk 1:00:06]} 15. b4 {[%clk 1:31:58]}  a6 {[%clk 0:59:59]} 16. Na4 {[%clk 1:32:12]}  Rb8 {[%clk 0:57:52]} 17. Nc5 {[%clk 1:27:47]}  Ng7 {[%clk 0:57:24]} 18. Ra2 {[%clk 1:23:56]}  Bf5 {[%clk 0:56:33]} 19. Nc1 {[%clk 1:22:17]}  Qg5 {[%clk 0:54:46]} 20. Bxf5 {[%clk 1:16:06]}  Nxf5 {[%clk 0:54:57]} 21. N1d3 {[%clk 1:15:57]}  h5 {[%clk 0:50:10]} 22. Qd1 {[%clk 1:15:40]}  Ne6 {[%clk 0:47:42]} 23. Qf3 {[%clk 1:05:20]}  Kg7 {[%clk 0:46:31]} 24. Kh1 {[%clk 1:00:50]}  Re7 {[%clk 0:45:09]} 25. Rg1 {[%clk 1:00:03]}  Rh8 {[%clk 0:39:03]} 26. g3 {[%clk 0:56:10]}  Nd6 {[%clk 0:36:48]} 27. Nf4 {[%clk 0:55:15]}  Nxc5 {[%clk 0:31:38]} 28. bxc5 {[%clk 0:55:13]}  Nc4 {[%clk 0:31:36]} 29. g4 {[%clk 0:54:33]}  hxg4 {[%clk 0:29:08]} 30. Qxg4 {[%clk 0:52:29]}  Qxg4 {[%clk 0:26:09]} 31. Rxg4 {[%clk 0:52:55]}  Kf6 {[%clk 0:26:10]} 32. Nd3 {[%clk 0:51:48]}  Kf5 {[%clk 0:23:05]} 33. Rf4+ {[%clk 0:51:56]}  Kg5 {[%clk 0:23:32]} 34. Ne5 {[%clk 0:45:24]}  Nxe5 {[%clk 0:19:32]} 35. dxe5 {[%clk 0:45:05]}  Rh7 {[%clk 0:10:41]} 36. Rb2 {[%clk 0:44:41]}  Rxe5 {[%clk 0:10:55]} 37. Rxb7 {[%clk 0:45:05]}  d4 {[%clk 0:11:12]} 38. Rxd4 {[%clk 0:41:16]}  Rxc5 {[%clk 0:11:27]} 39. Ra4 {[%clk 0:41:45]}  Rh4 {[%clk 0:09:23]} 40. Ra1 {[%clk 0:31:02]}  Rf5 {[%clk 0:07:27]} 41. Ra2 {[%clk 0:28:48]}  c5 {[%clk 0:28:38]} 42. Rb6 {[%clk 0:56:49]}  c4 {[%clk 0:22:57]} 43. Rxa6 {[%clk 0:57:14]}  Rc5 {[%clk 0:18:43]} 44. Rb6 {[%clk 0:43:45]}  c3 {[%clk 0:18:52]} 45. Rb1 {[%clk 0:44:12]}  Kg4 {[%clk 0:04:52]} 46. a6 {[%clk 0:40:19]}  Rh8 {[%clk 0:04:44]} 47. Kg2 {[%clk 0:34:55]}  Ra8 {[%clk 0:03:49]} 48. a7 {[%clk 0:33:26]}  Rc7 {[%clk 0:03:57]} 49. Ra5 {[%clk 0:33:19]}  f5 {[%clk 0:03:26]} 50. Ra6 {[%clk 0:30:14]}  c2 {[%clk 0:03:11]} 51. Rxg6+ {[%clk 0:23:44]}  Kh5 {[%clk 0:03:40]} 52. Rbb6 {[%clk 0:24:09]}  f4 {[%clk 0:01:10]} 53. exf4 {[%clk 0:24:30]} 1-0


[Site "http://www.chessbomb.com"]